fUST/lending_fUST_20240808
["ID","MTS","AMOUNT","RATE_DAILY","PERIOD"]
[334466077,1723132238019,-1536.72351208,0.00015954,2]
[334466079,1723132238029,-300.0,0.00016037,2]
[334466081,1723132238038,-2162.90546762,0.00016038,2]
[334466083,1723132238047,-1109.04434069,0.00016038,2]
[334466085,1723132238058,-188.24924053,0.00016038,2]
[334466087,1723132238068,-1128.93746315,0.00016038,2]
[334466089,1723132238077,-154.88961185,0.00016095,2]
[334466091,1723132238086,-209.86227882,0.00016095,2]
[334466093,1723132238095,-356.53097519,0.00016095,2]
[334466095,1723132238105,-155.52327347,0.00016095,2]
[334466097,1723132238115,-180.82691021,0.00016095,2]
[334466100,1723132238128,-219.1840785,0.00016095,2]
[334466102,1723132238138,-155.14905259,0.0001611,2]
[334466104,1723132238148,-308.230362,0.0001827,2]
[334466105,1723132238158,-355.17252079,0.00018976,2]
[334466107,1723132238167,-4816.45796105,0.00019256,2]
[334466108,1723132238176,-1500.0,0.00019477,2]
[334466109,1723132238186,-543.54679124,0.00019477,2]
[334466110,1723132238197,-806.61633679,0.00019477,2]
[334466111,1723132238207,-1626.61800287,0.0002,2]
[334466112,1723132238219,-308.87381917,0.00020832,2]
[334466113,1723132238228,-2272.92195154,0.00020932,2]
[334466114,1723132238238,-4183.4711297,0.00020932,2]
[334466115,1723132238249,-5558.45963172,0.00021,3]
[334466116,1723132238259,-1599.22406617,0.00021442,2]
[334466117,1723132238275,-414.04675619,0.00021532,2]
[334466118,1723132238284,-694.06857466,0.00021591,2]
[334466119,1723132238294,-808.14934153,0.00021599,2]
[334466120,1723132238305,-1795.39299841,0.00021599,2]
[334466121,1723132238315,-664.5582695,0.00021599,2]
[334466122,1723132238325,-1091.69139402,0.00021602,2]
[334466123,1723132238336,-500.0,0.00021607,2]
[334466124,1723132238347,-500.0,0.00021607,2]
[334466125,1723132238357,-432.15896428,0.00021607,2]
[334466126,1723132238368,-327.49759596,0.00021609,7]
[334466127,1723132238379,-542.48310742,0.00021609,2]
[334466128,1723132238388,-952.22238647,0.00021609,2]
[334466129,1723132238397,-297.10158211,0.00021609,2]
[334466130,1723132238406,-154.9150861,0.00021632,2]
[334466131,1723132238415,-160.64700877,0.00022,2]
[334466132,1723132238426,-881.97401853,0.0002217,2]
[334466133,1723132238436,-24900.0,0.00022324,2]
[334466134,1723132238446,-10283.76639563,0.00023,5]
[334466135,1723132238455,-472.12044886,0.00023,2]
[334466136,1723132238465,-1599.22406617,0.00023942,2]
[334466137,1723132238474,-4350.92455896,0.00024,30]
[334466138,1723132238483,-151.0,0.0002493,7]
[334466139,1723132238493,-151.0,0.0002493,7]
[334466140,1723132238503,-151.0,0.0002493,7]
[334466141,1723132238512,-151.661857,0.0002493,7]
[334466142,1723132238522,-151.0,0.0002493,7]
[334466143,1723132238531,-211.658753,0.0002493,7]
[334466144,1723132238540,-211.658753,0.0002493,7]
[334466145,1723132238550,-258.923356,0.0002493,7]
[334466146,1723132238563,-258.923356,0.0002493,7]
[334466147,1723132238572,-9621.19,0.0002493,3]
[334466148,1723132238582,-4703.09899989,0.00024934,2]
[334466149,1723132238592,-151.0,0.00024934,7]
[334466150,1723132238601,-151.0,0.00024934,7]
[334466151,1723132238611,-151.0,0.00024934,7]
[334466152,1723132238623,-151.0,0.00024934,7]
[334466153,1723132238633,-11545.43,0.0002494,3]
[334466154,1723132238643,-13854.51,0.0002495,3]
[334466155,1723132238654,-35393.384084,0.0002496,3]
[334466156,1723132238664,-151.0,0.0002496,7]
[334466157,1723132238674,-151.0,0.0002496,7]
[334466158,1723132238684,-151.0,0.0002496,7]
[334466159,1723132238694,-211.658753,0.0002496,7]
[334466160,1723132238703,-211.658753,0.0002496,7]
[334466161,1723132238713,-151.0,0.0002496,7]
[334466162,1723132238723,-258.923356,0.0002496,7]
[334466163,1723132238733,-151.0,0.0002496,7]
[334466164,1723132238743,-258.923356,0.0002496,7]
[334466165,1723132238753,-151.0,0.0002496,7]
[334466166,1723132238763,-151.0,0.0002496,7]
[334466167,1723132238773,-176.850239,0.0002497,7]
[334466168,1723132238783,-176.850239,0.0002497,7]
[334466169,1723132238794,-151.0,0.0002497,2]
[334466170,1723132238804,-151.939087,0.0002498,7]
[334466171,1723132238813,-151.0,0.0002498,7]
[334466172,1723132238823,-151.0,0.0002498,7]
[334466173,1723132238833,-151.0,0.0002498,7]
[334466174,1723132238844,-520.75919377,0.00024988,2]
[334466175,1723132238853,-500.0,0.00024988,2]
[334466176,1723132238864,-500.0,0.00024988,2]
[334466177,1723132238877,-246.41079233,0.00024988,2]
[334466178,1723132238887,-500.0,0.00024988,2]
[334466179,1723132238898,-500.0,0.00024988,2]
[334466180,1723132238910,-500.0,0.00024988,2]
[334466181,1723132238919,-500.0,0.00024988,2]
[334466182,1723132238929,-500.0,0.00024988,2]
[334466183,1723132238939,-500.0,0.00024988,2]
[334466184,1723132238949,-500.0,0.00024988,2]
[334466185,1723132238959,-500.0,0.00024988,2]
[334466186,1723132238969,-500.0,0.00024988,2]
[334466187,1723132238978,-500.0,0.00024988,2]
[334466188,1723132238988,-500.0,0.00024988,2]
[334466189,1723132238998,-500.0,0.00024988,2]
[334466190,1723132239007,-260.23326845,0.00024988,2]
[334466191,1723132239017,-500.0,0.00024988,2]
[334466192,1723132239028,-500.0,0.00024988,2]
[334466193,1723132239038,-500.0,0.00024988,2]
[334466194,1723132239047,-500.0,0.00024988,2]
[334466195,1723132239057,-500.0,0.00024988,2]
[334466196,1723132239066,-500.0,0.00024988,2]
[334466197,1723132239076,-215.08033818,0.00024988,2]
[334466198,1723132239085,-500.0,0.00024988,2]
[334466199,1723132239095,-500.0,0.00024988,2]
[334466200,1723132239104,-500.0,0.00024988,2]
[334466201,1723132239114,-500.0,0.00024988,2]
[334466202,1723132239130,-500.0,0.00024988,2]
[334466203,1723132239139,-500.0,0.00024988,2]
[334466204,1723132239149,-500.0,0.00024988,2]
[334466205,1723132239159,-500.0,0.00024988,2]
[334466206,1723132239169,-500.0,0.00024988,2]
[334466207,1723132239179,-500.0,0.00024988,2]
[334466208,1723132239189,-500.0,0.00024988,2]
[334466209,1723132239198,-500.0,0.00024988,2]
[334466210,1723132239209,-500.0,0.00024988,2]
[334466211,1723132239219,-151.0,0.00024989,7]
[334466212,1723132239230,-151.0,0.00024989,7]
[334466213,1723132239239,-151.0,0.00024989,7]
[334466214,1723132239249,-211.658753,0.00024989,7]
[334466215,1723132239258,-211.658753,0.00024989,7]
[334466216,1723132239268,-151.0,0.00024989,7]
[334466217,1723132239280,-258.923356,0.00024989,7]
[334466218,1723132239290,-151.0,0.00024989,7]
[334466219,1723132239300,-258.923356,0.00024989,7]
[334466220,1723132239309,-151.0,0.00024989,7]
[334466221,1723132239321,-151.0,0.00024989,7]
[334466222,1723132239331,-86100.72574413,0.0002499,11]
[334466223,1723132239340,-217.489021,0.0002499,7]
[334466225,1723132239350,-217.489021,0.0002499,7]
[334466227,1723132239360,-170.502261,0.0002499,7]
[334466228,1723132239376,-151.0,0.0002499,7]
[334466231,1723132239386,-151.0,0.0002499,7]
[334466232,1723132239395,-151.0,0.0002499,7]
[334466234,1723132239405,-35393.384084,0.0002499,3]
[334466236,1723132239414,-151.0,0.0002499,7]
[334466237,1723132239424,-151.0,0.0002499,7]
[334466238,1723132239433,-151.0,0.0002499,7]
[334466239,1723132239444,-211.658753,0.0002499,7]
[334466240,1723132239454,-211.658753,0.0002499,7]
[334466241,1723132239463,-151.0,0.0002499,7]
[334466242,1723132239473,-151.0,0.0002499,7]
[334466243,1723132239483,-258.923356,0.0002499,7]
[334466244,1723132239494,-151.0,0.0002499,7]
[334466245,1723132239503,-258.923356,0.0002499,7]
[334466247,1723132239513,-151.0,0.0002499,7]
[334466249,1723132239523,-185.759655,0.0002499,7]
[334466250,1723132239533,-151.0,0.0002499,7]
[334466251,1723132239543,-151.0,0.0002499,7]
[334466252,1723132239553,-23201.42953338,0.00025,30]
[334466253,1723132239563,-304.41216996,0.00025,2]
[334466254,1723132239573,-151.0,0.00025,7]
[334466255,1723132239582,-176.850239,0.00025,7]
[334466256,1723132239592,-176.850239,0.00025,7]
[334466257,1723132239601,-217.489021,0.00025,7]
[334466258,1723132239611,-150.112233,0.00025,5]
[334466259,1723132239625,-217.489021,0.00025,7]
[334466260,1723132239634,-151.0,0.00025,7]
[334466261,1723132239644,-151.0,0.00025,7]
[334466262,1723132239654,-151.0,0.00025,7]
[334466263,1723132239663,-263.966586,0.00025,7]
[334466264,1723132239673,-151.0,0.00025,7]
[334466265,1723132239683,-151.0,0.00025,7]
[334466266,1723132239692,-211.658753,0.00025,7]
[334466267,1723132239701,-211.658753,0.00025,7]
[334466268,1723132239710,-191.088088,0.00025,7]
[334466269,1723132239719,-258.923356,0.00025,7]
[334466270,1723132239728,-258.923356,0.00025,7]
[334466271,1723132239737,-151.0,0.00025,7]
[334466272,1723132239747,-402.58073778,0.00025338,2]
[334466273,1723132239756,-189.63844992,0.00025372,2]
[334466274,1723132239766,-250.3081391,0.00025372,2]
[334466275,1723132239776,-158.557868,0.00025405,2]
[334466276,1723132239785,-4703.09899989,0.00025441,2]
[334466277,1723132239794,-217.489021,0.00025492,7]
[334466278,1723132239803,-217.489021,0.00025492,7]
[334466279,1723132239812,-151.0,0.00025492,7]
[334466280,1723132239821,-176.850239,0.00025493,7]
[334466282,1723132239831,-176.850239,0.00025493,7]
[334466283,1723132239840,-151.0,0.00025611,7]
[334466284,1723132239850,-4703.09899989,0.00025689,2]
[334466285,1723132239859,-4703.09899989,0.00025761,2]
[334466286,1723132239870,-176.850239,0.00025864,7]
[334466287,1723132239886,-176.850239,0.00025864,7]
[334466288,1723132239896,-217.489021,0.00025864,7]
[334466289,1723132239905,-217.489021,0.00025864,7]
[334466290,1723132239914,-151.0,0.00025864,7]
[334466291,1723132239923,-274.083016,0.00025864,7]
[334466292,1723132239942,-211.658753,0.00025864,7]
[334466293,1723132239954,-211.658753,0.00025864,7]
[334466294,1723132239964,-258.923356,0.00025864,7]
[334466295,1723132239973,-258.923356,0.00025864,7]
[334466296,1723132239982,-151.0,0.00025864,7]
[334466297,1723132239992,-27197.27051446,0.00025996,11]
[334466298,1723132240002,-151.0,0.00025996,7]
[334466299,1723132240011,-211.658753,0.00025996,7]
[334466300,1723132240020,-211.658753,0.00025996,7]
[334466301,1723132240030,-258.923356,0.00025996,7]
[334466302,1723132240039,-258.923356,0.00025996,7]
[334466303,1723132240049,-151.0,0.00025996,7]
[334466304,1723132240059,-35393.384084,0.00025996,3]
[334466305,1723132240068,-200.0,0.00026027,2]
[334466306,1723132240078,-150.0,0.00026061,2]
[334466307,1723132240088,-4703.09899989,0.00026064,2]
[334466308,1723132240098,-150.0,0.00026347,2]
[334466309,1723132240107,-1599.22406617,0.00026442,2]
[334466310,1723132240117,-151.0,0.00026446,7]
[334466311,1723132240129,-151.0,0.00026446,7]
[334466312,1723132240138,-4703.09899989,0.00026502,2]
[334466313,1723132240148,-284.78720614,0.00026633,2]
[334466314,1723132240157,-151.0,0.0002664,7]
[334466315,1723132240167,-35393.384084,0.00026681,3]
[334466316,1723132240176,-151.0,0.00026681,7]
[334466317,1723132240186,-211.658753,0.00026681,7]
[334466318,1723132240196,-211.658753,0.00026681,7]
[334466319,1723132240205,-258.923356,0.00026681,7]
[334466320,1723132240214,-258.923356,0.00026681,7]
[334466321,1723132240224,-151.0,0.00026681,7]
[334466322,1723132240233,-151.0,0.00026691,7]
[334466323,1723132240243,-151.0,0.00026691,7]
[334466324,1723132240252,-211.658753,0.00026691,7]
[334466325,1723132240262,-211.658753,0.00026691,7]
[334466326,1723132240271,-258.923356,0.00026691,7]
[334466327,1723132240497,-258.923356,0.00026691,7]
[334466328,1723132240510,-4703.09899989,0.00026771,2]
[334466329,1723132240519,-151.0,0.00026854,7]
[334466330,1723132240529,-211.658753,0.00026854,7]
[334466332,1723132240539,-211.658749,0.00026854,7]
[334466333,1723132240549,-258.923356,0.00026854,7]
[334466334,1723132240558,-258.923358,0.00026854,7]
[334466335,1723132240567,-151.0,0.00026854,7]
[334466336,1723132240577,-35393.384084,0.00026854,3]
[334466337,1723132240586,-176.850239,0.00026963,7]
[334466338,1723132240595,-176.850239,0.00026963,7]
[334466339,1723132240605,-217.489021,0.00026963,7]
[334466340,1723132240614,-217.489021,0.00026963,7]
[334466341,1723132240626,-2005.0,0.00026999,10]
[334466342,1723132240635,-2000.0,0.00027,3]
[334466343,1723132240644,-4703.09899993,0.00027062,2]
[334466344,1723132240653,-2469.55127862,0.000271,2]
[334466345,1723132240663,-70786.7681679,0.0002719,3]
[334466346,1723132240672,-151.0,0.0002719,7]
[334466347,1723132240681,-2000.0,0.0002719,2]
[334466348,1723132240691,-151.0,0.00027199,7]
[334466349,1723132240700,-151.0,0.00027199,7]
[334466350,1723132240714,-176.850239,0.00027199,7]
[334466351,1723132240724,-176.850239,0.00027199,7]
[334466352,1723132240733,-217.489021,0.00027199,7]
[334466353,1723132240743,-217.489021,0.00027199,7]
[334466354,1723132240753,-904.19254394,0.000272,5]
[334466355,1723132240762,-88888.0,0.000272,3]
[334466356,1723132240772,-151.0,0.000272,7]
[334466357,1723132240781,-151.0,0.000272,7]
[334466358,1723132240791,-151.0,0.000272,2]
[334466359,1723132240800,-151.0,0.000272,7]
[334466360,1723132240810,-151.0,0.000272,7]
[334466361,1723132240819,-151.0,0.000272,7]
[334466362,1723132240829,-176.850239,0.000272,7]
[334466363,1723132240838,-176.850239,0.000272,7]
[334466364,1723132240848,-217.489021,0.000272,7]
[334466365,1723132240858,-217.489021,0.000272,7]
[334466366,1723132240867,-151.0,0.000272,7]
[334466367,1723132240881,-151.0,0.0002727,7]
[334466368,1723132240890,-151.0,0.0002727,7]
[334466369,1723132240899,-151.0,0.0002727,2]
[334466370,1723132240908,-151.0,0.0002727,7]
[334466371,1723132240918,-176.850239,0.0002727,7]
[334466372,1723132240928,-176.850239,0.0002727,7]
[334466373,1723132240937,-217.489021,0.0002727,7]
[334466374,1723132240947,-217.489021,0.0002727,7]
[334466375,1723132240958,-151.0,0.0002727,7]
[334466376,1723132240969,-200.0,0.00027273,2]
[334466377,1723132240979,-151.0,0.0002728,2]
[334466378,1723132240989,-157.539734,0.0002728,7]
[334466379,1723132240999,-176.850239,0.0002728,7]
[334466380,1723132241010,-176.850239,0.0002728,7]
[334466381,1723132241020,-217.489021,0.0002728,7]
[334466382,1723132241030,-217.489021,0.0002728,7]
[334466383,1723132241039,-151.0,0.0002728,7]
[334466384,1723132241049,-150.01,0.00027286,2]
[334466385,1723132241059,-2993.00758584,0.00027286,2]
[334466386,1723132241069,-151.0,0.00027288,7]
[334466387,1723132241080,-151.0,0.00027288,2]
[334466388,1723132241091,-29046.26645401,0.00027289,3]
[334466407,1723132242935,-932.36255016,0.00015954,2]
[334466408,1723132242945,-1611.38995866,0.00021591,2]
[334466409,1723132242954,-151.0,0.00024934,7]
[334466410,1723132242964,-151.0,0.0002496,7]
[334466411,1723132242973,-151.0,0.00024989,7]
[334466412,1723132242982,-151.0,0.0002499,7]
[334466413,1723132242992,-151.0,0.0002499,7]
[334466414,1723132243002,-151.0,0.00025,7]
[334466415,1723132243012,-151.0,0.00025864,7]
[334466416,1723132243021,-164.590346,0.00025996,7]
[334466417,1723132243030,-6347.11762999,0.00027289,3]
[334466418,1723132243039,-2005.0,0.00027289,10]
[334466419,1723132243049,-206.78023,0.0002729,7]
[334466420,1723132243058,-151.0,0.0002729,2]
[334466421,1723132243067,-253.39356,0.0002729,2]
[334466422,1723132243076,-176.850239,0.0002729,7]
[334466423,1723132243086,-176.850233,0.0002729,7]
[334466424,1723132243095,-217.489021,0.0002729,7]
[334466425,1723132243104,-217.489013,0.0002729,7]
[334466426,1723132243114,-8017.66,0.0002729,3]
[334466427,1723132243124,-2000.0,0.00027297,2]
[334466428,1723132243133,-2005.0,0.00027299,10]
[334466429,1723132243142,-117027.62052347,0.000273,2]
[334466430,1723132243152,-150.112233,0.000273,9]
[334466431,1723132243161,-150.112233,0.000273,9]
[334466432,1723132243171,-150.112233,0.000273,9]
[334466433,1723132243182,-3000.0,0.000273,2]
[334466434,1723132243192,-3000.0,0.000273,2]
[334466435,1723132243201,-3000.0,0.0002731,2]
[334466436,1723132243211,-3000.0,0.0002731,2]
[334466437,1723132243220,-3000.0,0.0002732,2]
[334466438,1723132243230,-3000.0,0.0002732,2]
[334466439,1723132243240,-3000.0,0.0002733,2]
[334466440,1723132243250,-3000.0,0.0002733,2]
[334466441,1723132243260,-3000.0,0.0002734,2]
[334466442,1723132243271,-3000.0,0.0002734,2]
[334466443,1723132243284,-2005.0,0.00027349,10]
[334466445,1723132243294,-11735.92917446,0.0002735,5]
[334466446,1723132243303,-3000.0,0.0002735,2]
[334466448,1723132243315,-3000.0,0.0002735,2]
[334466450,1723132243324,-3000.0,0.0002736,2]
[334466452,1723132243333,-3000.0,0.0002736,2]
[334466453,1723132243343,-1000.0,0.00027366,2]
[334466455,1723132243354,-693.72411053,0.00027366,10]
[334466456,1723132243363,-3000.0,0.0002737,2]
[334466458,1723132243378,-3000.0,0.0002737,2]
[334466460,1723132243387,-200.0,0.00027373,2]
[334466462,1723132243397,-196.22518085,0.00027373,2]
[334466464,1723132243407,-200.0,0.00027373,2]
[334466466,1723132243417,-3000.0,0.0002738,2]
[334466468,1723132243427,-3000.0,0.0002738,2]
[334466470,1723132243437,-3000.0,0.0002739,2]
[334466472,1723132243447,-3000.0,0.0002739,2]
[334466474,1723132243457,-305.65463372,0.00027396,2]
[334466476,1723132243467,-2605.08504403,0.00027396,2]
[334466477,1723132243477,-107.96780263,0.00027397,7]
[334466479,1723132243509,-392.03219737,0.00027397,7]
[334466481,1723132243519,-500.0,0.00027397,7]
[334466483,1723132243529,-500.0,0.00027397,7]
[334466486,1723132243542,-501.81474719,0.00027397,7]
[334466487,1723132243552,-500.0,0.00027397,14]
[334466488,1723132243561,-398.41,0.00027397,14]
[334466489,1723132243572,-630.5743959,0.00027397,7]
[334466490,1723132243582,-502.07596299,0.00027397,7]
[334466491,1723132243592,-629.74,0.00027397,7]
[334466492,1723132243603,-244.62766966,0.00027397,7]
[334466494,1723132243613,-296.61809326,0.00027397,7]
[334466496,1723132243626,-503.28980929,0.00027397,7]
[334466497,1723132243635,-461.04795075,0.00027397,7]
[334466498,1723132243645,-500.0,0.00027397,7]
[334466500,1723132243655,-500.0,0.00027397,7]
[334466502,1723132243664,-500.0,0.00027397,7]
[334466503,1723132243675,-603.77,0.00027397,7]
[334466504,1723132243685,-500.0,0.00027397,7]
[334466505,1723132243695,-500.0,0.00027397,7]
[334466506,1723132243704,-500.0,0.00027397,7]
[334466507,1723132243714,-500.0,0.00027397,7]
[334466508,1723132243725,-500.0,0.00027397,7]
[334466509,1723132243734,-500.0,0.00027397,7]
[334466510,1723132243744,-331.33096028,0.00027397,7]
[334466511,1723132243754,-500.0,0.00027397,7]
[334466512,1723132243765,-500.0,0.00027397,7]
[334466513,1723132243776,-500.0,0.00027397,7]
[334466514,1723132243787,-500.0,0.00027397,7]
[334466515,1723132243798,-540.17,0.00027397,7]
[334466516,1723132243808,-500.0,0.00027397,7]
[334466517,1723132243818,-500.0,0.00027397,7]
[334466518,1723132243829,-500.0,0.00027397,7]
[334466519,1723132243839,-500.0,0.00027397,7]
[334466520,1723132243849,-500.0,0.00027397,7]
[334466521,1723132243859,-500.0,0.00027397,7]
[334466522,1723132243869,-500.0,0.00027397,7]
[334466523,1723132243885,-500.0,0.00027397,7]
[334466524,1723132243895,-500.0,0.00027397,7]
[334466525,1723132243904,-500.0,0.00027397,7]
[334466526,1723132243913,-500.0,0.00027397,7]
[334466527,1723132243923,-500.0,0.00027397,7]
[334466528,1723132243932,-500.0,0.00027397,7]
[334466529,1723132243942,-500.0,0.00027397,7]
[334466530,1723132243953,-500.0,0.00027397,7]
[334466531,1723132243963,-500.0,0.00027397,7]
[334466532,1723132243973,-500.0,0.00027397,7]
[334466533,1723132243983,-500.0,0.00027397,7]
[334466534,1723132243993,-500.0,0.00027397,7]
[334466535,1723132244003,-500.0,0.00027397,7]
[334466536,1723132244013,-572.01,0.00027397,7]
[334466537,1723132244023,-500.0,0.00027397,7]
[334466538,1723132244033,-500.0,0.00027397,7]
[334466539,1723132244044,-500.0,0.00027397,7]
[334466540,1723132244054,-751.38,0.00027397,7]
[334466541,1723132244064,-500.0,0.00027397,7]
[334466542,1723132244074,-508.0138474,0.00027397,7]
[334466543,1723132244083,-500.0,0.00027397,7]
[334466544,1723132244094,-500.0,0.00027397,7]
[334466545,1723132244105,-500.0,0.00027397,7]
[334466546,1723132244115,-500.0,0.00027397,2]
[334466547,1723132244129,-500.0,0.00027397,7]
[334466548,1723132244138,-500.0,0.00027397,7]
[334466549,1723132244147,-500.0,0.00027397,7]
[334466550,1723132244156,-500.0,0.00027397,7]
[334466551,1723132244166,-500.0,0.00027397,7]
[334466552,1723132244175,-500.0,0.00027397,7]
[334466553,1723132244184,-500.0,0.00027397,7]
[334466554,1723132244195,-500.0,0.00027397,7]
[334466555,1723132244206,-500.0,0.00027397,7]
[334466556,1723132244216,-500.0,0.00027397,7]
[334466557,1723132244226,-295.7068697,0.00027397,7]
[334466558,1723132244237,-500.0,0.00027397,7]
[334466559,1723132244247,-500.0,0.00027397,7]
[334466560,1723132244257,-500.0,0.00027397,7]
[334466561,1723132244271,-395.97189526,0.00027397,7]
[334466562,1723132244282,-181.69971456,0.00027397,7]
[334466563,1723132244293,-500.0,0.00027397,7]
[334466564,1723132244306,-500.0,0.00027397,7]
[334466565,1723132244316,-500.0,0.00027397,7]
[334466566,1723132244326,-500.0,0.00027397,7]
[334466567,1723132244340,-500.0,0.00027397,7]
[334466568,1723132244351,-500.0,0.00027397,7]
[334466569,1723132244363,-500.0,0.00027397,7]
[334466570,1723132244375,-500.0,0.00027397,7]
[334466571,1723132244387,-500.0,0.00027397,7]
[334466572,1723132244397,-500.0,0.00027397,7]
[334466573,1723132244408,-500.0,0.00027397,7]
[334466574,1723132244419,-500.0,0.00027397,7]
[334466575,1723132244430,-500.0,0.00027397,7]
[334466576,1723132244440,-505.5419183,0.00027397,7]
[334466577,1723132244453,-500.0,0.00027397,7]
[334466578,1723132244463,-500.0,0.00027397,7]
[334466579,1723132244473,-500.0,0.00027397,7]
[334466580,1723132244483,-500.0,0.00027397,7]
[334466581,1723132244494,-519.53,0.00027397,7]
[334466582,1723132244504,-500.0,0.00027397,7]
[334466583,1723132244515,-500.0,0.00027397,7]
[334466584,1723132244525,-500.0,0.00027397,7]
[334466585,1723132244535,-500.0,0.00027397,7]
[334466586,1723132244545,-522.86229006,0.00027397,7]
[334466587,1723132244556,-500.0,0.00027397,7]
[334466588,1723132244567,-500.0,0.00027397,7]
[334466589,1723132244578,-500.0,0.00027397,7]
[334466590,1723132244589,-257.26287464,0.00027397,7]
[334466591,1723132244599,-500.0,0.00027397,7]
[334466592,1723132244610,-500.0,0.00027397,7]
[334466593,1723132244620,-500.0,0.00027397,7]
[334466594,1723132244634,-500.0,0.00027397,7]
[334466595,1723132244644,-500.0,0.00027397,7]
[334466596,1723132244654,-223.69320676,0.00027397,7]
[334466597,1723132244664,-500.0,0.00027397,7]
[334466598,1723132244675,-500.0,0.00027397,7]
[334466599,1723132244687,-500.0,0.00027397,7]
[334466600,1723132244697,-500.0,0.00027397,7]
[334466601,1723132244707,-623.62,0.00027397,7]
[334466602,1723132244717,-500.0,0.00027397,7]
[334466603,1723132244727,-500.0,0.00027397,7]
[334466604,1723132244739,-500.0,0.00027397,7]
[334466605,1723132244749,-500.0,0.00027397,7]
[334466606,1723132244759,-705.6,0.00027397,7]
[334466607,1723132244770,-500.0,0.00027397,7]
[334466608,1723132244781,-500.0,0.00027397,7]
[334466609,1723132244792,-500.0,0.00027397,7]
[334466610,1723132244803,-910.27,0.00027397,7]
[334466611,1723132244813,-500.0,0.00027397,7]
[334466612,1723132244823,-724.09,0.00027397,7]
[334466613,1723132244832,-500.0,0.00027397,7]
[334466614,1723132244842,-500.0,0.00027397,7]
[334466615,1723132244853,-500.0,0.00027397,7]
[334466616,1723132244863,-500.0,0.00027397,7]
[334466617,1723132244876,-284.71563674,0.00027397,7]
[334466618,1723132244885,-500.0,0.00027397,7]
[334466619,1723132244895,-500.6614948,0.00027397,7]
[334466620,1723132244904,-429.40485957,0.00027397,7]
[334466621,1723132244913,-500.0,0.00027397,7]
[334466622,1723132244923,-502.28331278,0.00027397,7]
[334466623,1723132244933,-500.0,0.00027397,7]
[334466624,1723132244944,-500.0,0.00027397,7]
[334466625,1723132244954,-500.0,0.00027397,7]
[334466626,1723132244964,-611.25,0.00027397,7]
[334466627,1723132244973,-500.0,0.00027397,7]
[334466628,1723132244983,-500.0,0.00027397,7]
[334466629,1723132244994,-500.0,0.00027397,7]
[334466630,1723132245005,-500.0,0.00027397,7]
[334466631,1723132245014,-500.0,0.00027397,7]
[334466632,1723132245025,-500.0,0.00027397,7]
[334466633,1723132245035,-500.0,0.00027397,7]
[334466634,1723132245045,-500.0,0.00027397,7]
[334466635,1723132245054,-780.44,0.00027397,7]
[334466636,1723132245064,-500.0,0.00027397,7]
[334466637,1723132245074,-500.0,0.00027397,7]
[334466638,1723132245084,-500.0,0.00027397,7]
[334466639,1723132245095,-500.0,0.00027397,7]
[334466640,1723132245105,-500.0,0.00027397,7]
[334466641,1723132245115,-631.75732864,0.00027397,7]
[334466642,1723132245127,-500.0,0.00027397,7]
[334466643,1723132245137,-500.0,0.00027397,7]